Workbook

Sheet TableauBord
B1: Calculette
B2: PGE Prêt Garanti Par l'Etat
A4: Montant du Prêt | B4: 100000 | C4: Euros | D4: Indiquer le Montant du Prêt
A5: Franchise Durée | B5: 12 | C5: Mois | D5: Indiquer la Durée de la Franchise en Mois. 12 Mois Uniquement
A6: Amortissement Durée | B6: 48 | C6: Mois | D6: Indiquer la Duréee d'Amortissement du Prêt
A7: Duree Totale du Prêt | B7: =+SUM(B5:B6) -> 60 | C7: Mois | D7: La Duréee Totale du Crédit, Franchise comprise ne doit pas dépasser 60 Mois
A8: Taux Bancaire du Prêt | B8: 0.008 | D8: Indiquer le Taux d'Intérêt de la Banque. Le taux peut être différent en fonction de la durée toale du prêt
A9: Taux Garantie BPI | B9: 0.0025 | D9: Le Taux de la Garantie BPI aplliqué à l'échéance du prêt
A10: Taux Garantie BPI 1-2 ans | B10: 0.005 | D10: Le Taux de la Garantie BPI appliqué les deux premières années en cas de remboursement différé
A11: Taux Garantie BPI 3-5 ans | B11: 0.01 | D11: Le Taux de la Garantie BPI appliqué de la 3ème à la 5 ème années en cas de remboursement différé
A13: Échéances Mensuelles Bancaires | B13: =-PMT(TauxBancaire/12,AmortissementDuree,MontantPret) -> 2117.538749 | D13: Montant des Échéances Mensuelles Bancaires
A14: Coût du Crédit Bancaire | B14: =+SUM(SimulationResultat!D2:D63) -> 2441.860013 | D14: Coût du Crédit Bancaire (Hors Assurance)
A15: Coût de la Garantie BPI | B15: =+SUM(SimulationResultat!G2:G63) -> 2358.849517 | D15: Coût de la Garantie BPI
A16: Coût Total du Crédit (Hors Assurance) | B16: =SUM(B14:B15) -> 4800.70953
D18: Les données sont calculées après avoir validé en appuyant sur le bouton Calcul Echéancier
D19: L'Echéancier est visible sur la Feuille Simulation Resultat
D21: NB De faibles écarts peuvent être notés en raison des rêgles de calcul propres à chaque organisme bncaire
D22: Ces documents n'ont pas valeur contractuelle. L'Union Dentaire ne peut être tenue reponsable de toute conséquence de l'utlisation de cette calculette

Sheet SimulationResultat
B1: Capital Debut Periode | C1: Echeance Organisme Bancaire | D1: Interets | E1: Amortissements | F1: Capital Restant Dû | G1: Echeance Garantie | H1: Echeance Mensuelle
A2: 0 | B2: 100000 | C2: 0 | D2: 0 | E2: =+C2-D2 -> 0 | F2: 100000 | G2: 250 | H2: =SUM(C2,G2) -> 250
A3: =+A2+1 -> 1 | B3: =+F2 -> 100000 | C3: =+D3+E3 -> 66.66666667 | D3: =+(TauxBancaire/12)*B3 -> 66.66666667 | E3: 0 | F3: =+B3-E3 -> 100000 | G3: =+B3*TxGBPI24/12 -> 41.66666667 | H3: =+C3+G3 -> 108.3333333
A4: =+A3+1 -> 2 | B4: =+F3 -> 100000 | C4: =+D4+E4 -> 66.66666667 | D4: =+(TauxBancaire/12)*B4 -> 66.66666667 | E4: 0 | F4: =+B4-E4 -> 100000 | G4: =+B4*TxGBPI24/12 -> 41.66666667 | H4: =+C4+G4 -> 108.3333333
A5: 3 | B5: 100000 | C5: 66.66666667 | D5: =+(TauxBancaire/12)*B5 -> 66.66666667 | E5: 0 | F5: 100000 | G5: =+B5*TxGBPI24/12 -> 41.66666667 | H5: 108.3333333
A6: 4 | B6: 100000 | C6: 66.66666667 | D6: =+(TauxBancaire/12)*B6 -> 66.66666667 | E6: 0 | F6: 100000 | G6: =+B6*TxGBPI24/12 -> 41.66666667 | H6: 108.3333333
A7: 5 | B7: 100000 | C7: 66.66666667 | D7: =+(TauxBancaire/12)*B7 -> 66.66666667 | E7: 0 | F7: 100000 | G7: =+B7*TxGBPI24/12 -> 41.66666667 | H7: 108.3333333
A8: 6 | B8: 100000 | C8: 66.66666667 | D8: =+(TauxBancaire/12)*B8 -> 66.66666667 | E8: 0 | F8: 100000 | G8: =+B8*TxGBPI24/12 -> 41.66666667 | H8: 108.3333333
A9: 7 | B9: 100000 | C9: 66.66666667 | D9: =+(TauxBancaire/12)*B9 -> 66.66666667 | E9: 0 | F9: 100000 | G9: =+B9*TxGBPI24/12 -> 41.66666667 | H9: 108.3333333
A10: 8 | B10: 100000 | C10: 66.66666667 | D10: =+(TauxBancaire/12)*B10 -> 66.66666667 | E10: 0 | F10: 100000 | G10: =+B10*TxGBPI24/12 -> 41.66666667 | H10: 108.3333333
A11: 9 | B11: 100000 | C11: 66.66666667 | D11: =+(TauxBancaire/12)*B11 -> 66.66666667 | E11: 0 | F11: 100000 | G11: =+B11*TxGBPI24/12 -> 41.66666667 | H11: 108.3333333
A12: 10 | B12: 100000 | C12: 66.66666667 | D12: =+(TauxBancaire/12)*B12 -> 66.66666667 | E12: 0 | F12: 100000 | G12: =+B12*TxGBPI24/12 -> 41.66666667 | H12: 108.3333333
A13: 11 | B13: 100000 | C13: 66.66666667 | D13: =+(TauxBancaire/12)*B13 -> 66.66666667 | E13: 0 | F13: 100000 | G13: =+B13*TxGBPI24/12 -> 41.66666667 | H13: 108.3333333
A14: 12 | B14: 100000 | C14: 66.66666667 | D14: =+(TauxBancaire/12)*B14 -> 66.66666667 | E14: 0 | F14: 100000 | G14: =+B14*TxGBPI24/12 -> 41.66666667 | H14: 108.3333333
A15: 13 | B15: 100000 | C15: 2117.5387 | D15: =+(TauxBancaire/12)*B15 -> 66.66666667 | E15: =+C15-D15 -> 2050.872033 | F15: 97949.12797 | G15: =+B15*TxGBPI24/12 -> 41.66666667 | H15: 2159.205367
A16: 14 | B16: =+F15 -> 97949.12797 | C16: 2117.5387 | D16: =+(TauxBancaire/12)*B16 -> 65.29941864 | E16: =+C16-D16 -> 2052.239281 | F16: =+B16-E16 -> 95896.88869 | G16: =+B16*TxGBPI24/12 -> 40.81213665 | H16: =+C16+G16 -> 2158.350837
A17: 15 | B17: 95896.88869 | C17: 2117.5387 | D17: =+(TauxBancaire/12)*B17 -> 63.93125912 | E17: 2053.607441 | F17: 93843.28124 | G17: =+B17*TxGBPI24/12 -> 39.95703695 | H17: 2157.495737
A18: 16 | B18: 93843.28124 | C18: 2117.5387 | D18: =+(TauxBancaire/12)*B18 -> 62.5621875 | E18: 2054.976513 | F18: 91788.30473 | G18: =+B18*TxGBPI24/12 -> 39.10136719 | H18: 2156.640067
A19: 17 | B19: 91788.30473 | C19: 2117.5387 | D19: =+(TauxBancaire/12)*B19 -> 61.19220315 | E19: 2056.346497 | F19: 89731.95824 | G19: =+B19*TxGBPI24/12 -> 38.24512697 | H19: 2155.783827
A20: 18 | B20: 89731.95824 | C20: 2117.5387 | D20: =+(TauxBancaire/12)*B20 -> 59.82130549 | E20: 2057.717395 | F20: 87674.24084 | G20: =+B20*TxGBPI24/12 -> 37.38831593 | H20: 2154.927016
A21: 19 | B21: 87674.24084 | C21: 2117.5387 | D21: =+(TauxBancaire/12)*B21 -> 58.44949389 | E21: 2059.089206 | F21: 85615.15163 | G21: =+B21*TxGBPI24/12 -> 36.53093368 | H21: 2154.069634
A22: 20 | B22: 85615.15163 | C22: 2117.5387 | D22: =+(TauxBancaire/12)*B22 -> 57.07676776 | E22: 2060.461932 | F22: 83554.6897 | G22: =+B22*TxGBPI24/12 -> 35.67297985 | H22: 2153.21168
A23: 21 | B23: 83554.6897 | C23: 2117.5387 | D23: =+(TauxBancaire/12)*B23 -> 55.70312647 | E23: 2061.835574 | F23: 81492.85413 | G23: =+B23*TxGBPI24/12 -> 34.81445404 | H23: 2152.353154
A24: 22 | B24: 81492.85413 | C24: 2117.5387 | D24: =+(TauxBancaire/12)*B24 -> 54.32856942 | E24: 2063.210131 | F24: 79429.644 | G24: =+B24*TxGBPI24/12 -> 33.95535589 | H24: 2151.494056
A25: 23 | B25: 79429.644 | C25: 2117.5387 | D25: =+(TauxBancaire/12)*B25 -> 52.953096 | E25: 2064.585604 | F25: 77365.05839 | G25: =+B25*TxGBPI24/12 -> 33.095685 | H25: 2150.634385
A26: 24 | B26: 77365.05839 | C26: 2117.5387 | D26: =+(TauxBancaire/12)*B26 -> 51.5767056 | E26: 2065.961994 | F26: 75299.0964 | G26: =+B26*TxGBPI24/12 -> 32.235441 | H26: 2149.774141
A27: 25 | B27: 75299.0964 | C27: 2117.5387 | D27: =+(TauxBancaire/12)*B27 -> 50.1993976 | E27: 2067.339302 | F27: 73231.7571 | G27: =+B27*TxGBPI60/12 -> 62.749247 | H27: 2180.287947
A28: 26 | B28: =+F27 -> 73231.7571 | C28: 2117.5387 | D28: =+(TauxBancaire/12)*B28 -> 48.8211714 | E28: =+C28-D28 -> 2068.717529 | F28: =+B28-E28 -> 71163.03957 | G28: =+B28*TxGBPI60/12 -> 61.02646425 | H28: =+C28+G28 -> 2178.565164
A29: 27 | B29: 71163.03957 | C29: 2117.5387 | D29: =+(TauxBancaire/12)*B29 -> 47.44202638 | E29: 2070.096674 | F29: 69092.9429 | G29: =+B29*TxGBPI60/12 -> 59.30253297 | H29: 2176.841233
A30: 28 | B30: 69092.9429 | C30: 2117.5387 | D30: =+(TauxBancaire/12)*B30 -> 46.06196193 | E30: 2071.476738 | F30: 67021.46616 | G30: =+B30*TxGBPI60/12 -> 57.57745241 | H30: 2175.116152
A31: 29 | B31: 67021.46616 | C31: 2117.5387 | D31: =+(TauxBancaire/12)*B31 -> 44.68097744 | E31: 2072.857723 | F31: 64948.60843 | G31: =+B31*TxGBPI60/12 -> 55.8512218 | H31: 2173.389922
A32: 30 | B32: 64948.60843 | C32: 2117.5387 | D32: =+(TauxBancaire/12)*B32 -> 43.29907229 | E32: 2074.239628 | F32: 62874.36881 | G32: =+B32*TxGBPI60/12 -> 54.12384036 | H32: 2171.66254
A33: 31 | B33: 62874.36881 | C33: 2117.5387 | D33: =+(TauxBancaire/12)*B33 -> 41.91624587 | E33: 2075.622454 | F33: 60798.74635 | G33: =+B33*TxGBPI60/12 -> 52.39530734 | H33: 2169.934007
A34: 32 | B34: 60798.74635 | C34: 2117.5387 | D34: =+(TauxBancaire/12)*B34 -> 40.53249757 | E34: 2077.006202 | F34: 58721.74015 | G34: =+B34*TxGBPI60/12 -> 50.66562196 | H34: 2168.204322
A35: 33 | B35: 58721.74015 | C35: 2117.5387 | D35: =+(TauxBancaire/12)*B35 -> 39.14782677 | E35: 2078.390873 | F35: 56643.34928 | G35: =+B35*TxGBPI60/12 -> 48.93478346 | H35: 2166.473483
A36: 34 | B36: 56643.34928 | C36: 2117.5387 | D36: =+(TauxBancaire/12)*B36 -> 37.76223285 | E36: 2079.776467 | F36: 54563.57281 | G36: =+B36*TxGBPI60/12 -> 47.20279106 | H36: 2164.741491
A37: 35 | B37: 54563.57281 | C37: 2117.5387 | D37: =+(TauxBancaire/12)*B37 -> 36.37571521 | E37: 2081.162985 | F37: 52482.40983 | G37: =+B37*TxGBPI60/12 -> 45.46964401 | H37: 2163.008344
A38: 36 | B38: 52482.40983 | C38: 2117.5387 | D38: =+(TauxBancaire/12)*B38 -> 34.98827322 | E38: 2082.550427 | F38: 50399.8594 | G38: =+B38*TxGBPI60/12 -> 43.73534152 | H38: 2161.274042
A39: 37 | B39: 50399.8594 | C39: 2117.5387 | D39: =+(TauxBancaire/12)*B39 -> 33.59990627 | E39: 2083.938794 | F39: 48315.9206 | G39: =+B39*TxGBPI60/12 -> 41.99988283 | H39: 2159.538583
A40: 38 | B40: 48315.9206 | C40: 2117.5387 | D40: =+(TauxBancaire/12)*B40 -> 32.21061374 | E40: 2085.328086 | F40: 46230.59252 | G40: =+B40*TxGBPI60/12 -> 40.26326717 | H40: 2157.801967
A41: 39 | B41: 46230.59252 | C41: 2117.5387 | D41: =+(TauxBancaire/12)*B41 -> 30.82039501 | E41: 2086.718305 | F41: 44143.87421 | G41: =+B41*TxGBPI60/12 -> 38.52549377 | H41: 2156.064194
A42: 40 | B42: 44143.87421 | C42: 2117.5387 | D42: =+(TauxBancaire/12)*B42 -> 29.42924948 | E42: 2088.109451 | F42: 42055.76476 | G42: =+B42*TxGBPI60/12 -> 36.78656184 | H42: 2154.325262
A43: 41 | B43: 42055.76476 | C43: 2117.5387 | D43: =+(TauxBancaire/12)*B43 -> 28.03717651 | E43: 2089.501523 | F43: 39966.26324 | G43: =+B43*TxGBPI60/12 -> 35.04647064 | H43: 2152.585171
A44: 42 | B44: 39966.26324 | C44: 2117.5387 | D44: =+(TauxBancaire/12)*B44 -> 26.64417549 | E44: 2090.894525 | F44: 37875.36871 | G44: =+B44*TxGBPI60/12 -> 33.30521937 | H44: 2150.843919
A45: 43 | B45: 37875.36871 | C45: 2117.5387 | D45: =+(TauxBancaire/12)*B45 -> 25.25024581 | E45: 2092.288454 | F45: 35783.08026 | G45: =+B45*TxGBPI60/12 -> 31.56280726 | H45: 2149.101507
A46: 44 | B46: 35783.08026 | C46: 2117.5387 | D46: =+(TauxBancaire/12)*B46 -> 23.85538684 | E46: 2093.683313 | F46: 33689.39695 | G46: =+B46*TxGBPI60/12 -> 29.81923355 | H46: 2147.357934
A47: 45 | B47: 33689.39695 | C47: 2117.5387 | D47: =+(TauxBancaire/12)*B47 -> 22.45959796 | E47: 2095.079102 | F47: 31594.31785 | G47: =+B47*TxGBPI60/12 -> 28.07449746 | H47: 2145.613197
A48: 46 | B48: 31594.31785 | C48: 2117.5387 | D48: =+(TauxBancaire/12)*B48 -> 21.06287856 | E48: 2096.475821 | F48: 29497.84202 | G48: =+B48*TxGBPI60/12 -> 26.3285982 | H48: 2143.867298
A49: 47 | B49: 29497.84202 | C49: 2117.5387 | D49: =+(TauxBancaire/12)*B49 -> 19.66522802 | E49: 2097.873472 | F49: 27399.96855 | G49: =+B49*TxGBPI60/12 -> 24.58153502 | H49: 2142.120235
A50: 48 | B50: 27399.96855 | C50: 2117.5387 | D50: =+(TauxBancaire/12)*B50 -> 18.2666457 | E50: 2099.272054 | F50: 25300.6965 | G50: =+B50*TxGBPI60/12 -> 22.83330713 | H50: 2140.372007
A51: 49 | B51: 25300.6965 | C51: 2117.5387 | D51: =+(TauxBancaire/12)*B51 -> 16.867131 | E51: 2100.671569 | F51: 23200.02493 | G51: =+B51*TxGBPI60/12 -> 21.08391375 | H51: 2138.622614
A52: 50 | B52: 23200.02493 | C52: 2117.5387 | D52: =+(TauxBancaire/12)*B52 -> 15.46668329 | E52: 2102.072017 | F52: 21097.95291 | G52: =+B52*TxGBPI60/12 -> 19.33335411 | H52: 2136.872054
A53: 51 | B53: 21097.95291 | C53: 2117.5387 | D53: =+(TauxBancaire/12)*B53 -> 14.06530194 | E53: 2103.473398 | F53: 18994.47951 | G53: =+B53*TxGBPI60/12 -> 17.58162743 | H53: 2135.120327
A54: 52 | B54: 18994.47951 | C54: 2117.5387 | D54: =+(TauxBancaire/12)*B54 -> 12.66298634 | E54: 2104.875714 | F54: 16889.6038 | G54: =+B54*TxGBPI60/12 -> 15.82873293 | H54: 2133.367433
A55: 53 | B55: 16889.6038 | C55: 2117.5387 | D55: =+(TauxBancaire/12)*B55 -> 11.25973587 | E55: 2106.278964 | F55: 14783.32484 | G55: =+B55*TxGBPI60/12 -> 14.07466983 | H55: 2131.61337
A56: 54 | B56: 14783.32484 | C56: 2117.5387 | D56: =+(TauxBancaire/12)*B56 -> 9.855549891 | E56: 2107.68315 | F56: 12675.64169 | G56: =+B56*TxGBPI60/12 -> 12.31943736 | H56: 2129.858137
A57: 55 | B57: 12675.64169 | C57: 2117.5387 | D57: =+(TauxBancaire/12)*B57 -> 8.450427791 | E57: 2109.088272 | F57: 10566.55341 | G57: =+B57*TxGBPI60/12 -> 10.56303474 | H57: 2128.101735
A58: 56 | B58: 10566.55341 | C58: 2117.5387 | D58: =+(TauxBancaire/12)*B58 -> 7.044368942 | E58: 2110.494331 | F58: 8456.059083 | G58: =+B58*TxGBPI60/12 -> 8.805461178 | H58: 2126.344161
A59: 57 | B59: 8456.059083 | C59: 2117.5387 | D59: =+(TauxBancaire/12)*B59 -> 5.637372722 | E59: 2111.901327 | F59: 6344.157755 | G59: =+B59*TxGBPI60/12 -> 7.046715902 | H59: 2124.585416
A60: 58 | B60: 6344.157755 | C60: 2117.5387 | D60: =+(TauxBancaire/12)*B60 -> 4.229438504 | E60: 2113.309261 | F60: 4230.848494 | G60: =+B60*TxGBPI60/12 -> 5.286798129 | H60: 2122.825498
A61: 59 | B61: 4230.848494 | C61: 2117.5387 | D61: =+(TauxBancaire/12)*B61 -> 2.820565663 | E61: 2114.718134 | F61: 2116.13036 | G61: =+B61*TxGBPI60/12 -> 3.525707078 | H61: 2121.064407
A62: 60 | B62: 2116.13036 | C62: 2117.5387 | D62: =+(TauxBancaire/12)*B62 -> 1.410753573 | E62: 2116.127946 | F62: 0.002413129577 | G62: =+B62*TxGBPI60/12 -> 1.763441966 | H62: 2119.302142

Sheet TauxBanques
A1: Taux d'Iinterêts PGE (Prêts Garantis par l'Etat) suivant les Organismes Bancaires
A3: Duréee | B3: Le Credit Lyonnais | C3: Crédit Agricole | D3: Crédit Mutuel | E3: CIC | F3: Banque Populaire Mediterrannée | G3: BNP Paribas
B4: LCL | C4: CA | D4: CM | E4: CIC | F4: BPO | G4: BNP
A5: 1 an | B5: 0.002 | C5: 0.0034 | D5: 0.002 | E5: 0.002 | F5: 0.002
A6: 2 ans | B6: 0.003 | C6: 0.0034 | D6: 0.0025 | E6: 0.0025 | F6: 0.002
A7: 3 ans | B7: 0.004 | C7: 0.0042 | D7: 0.0045 | E7: 0.0045 | F7: 0.004
A8: 4 ans | B8: 0.006 | C8: 0.0049 | D8: 0.0085 | E8: 0.0085 | F8: 0.0088
A9: 5 ans | B9: 0.0075 | C9: 0.0054 | D9: 0.01 | E9: 0.01 | F9: 0.0108 | G9: 0.01
B11: Majoration Franchise
A12: 3 ans | B12: 0.0005
A13: 4 ans | B13: 0.0005
A14: 5 ans | B14: 0.0005
A16: Ces données ne constituent pas un engagement et sont purement indicatives.
A18: A titre indicatif les valeurs fournies peuvent être évaluées dans la calculette jointe.
A20: La Garantie BPI et les Taux afférents sont définis par l'état
B21: Taux Garantie BPI
A22: 1 An | B22: 0.0025 | C22: Le taux de 0.25% est appliqué sur la totalité du prêt
A23: 2-3 ans | B23: 0.005 | C23: le taux de 0.50% est appliqué mensuellement sur la valeur résiduelle du prêt, c’est-à-dire surle montant restant à payer suivant la formule suivante: Capital restant dû (=Capital-Intérêts)x Taux Intérêt Annuel/12
A24: 4-5-6 ans | B24: 0.01 | C24: le taux de1.00% est appliqué mensuellement sur la valeur résiduelle du prêt, c’est-à-dire surle montant restant à payer suivant la formule suivante: Capital restant dû (=Capital-Intérêts)x Taux Intérêt Annuel/12
